bitfinex-derivatives/quotes_SOLF0:USTF0_20250207
["timestamp","ask_amount","ask_price","bid_price","bid_amount"]
[1738920327012,1.5776,195.34,195.24,27.19538134]
[1738920327402,0.03360276,195.31,195.27,0.03433495]
[1738920327706,0.03360276,195.31,195.28,5.1195]
[1738920327906,0.03360276,195.31,195.27,0.03433495]
[1738920328705,0.03360276,195.31,195.3,32.31438134]
[1738920329014,21.08603386,195.36,195.3,32.31438134]
[1738920329015,21.08603386,195.36,195.3,27.19538134]
[1738920329311,21.08603386,195.36,195.35,5.1177]
[1738920329612,177.89978763,195.42,195.35,5.1177]
[1738920329613,5.116,195.42,195.35,5.1177]
[1738920329902,5.1167,195.39,195.37,0.03429414]
[1738920330116,5.1167,195.39,195.28,1.581]
[1738920330298,5.1167,195.39,195.36,0.03396554]
[1738920330503,0.03604468,195.35,195.28,1.581]
[1738920330701,5.1172,195.37,195.28,1.581]
[1738920330909,0.03773965,195.33,195.3,0.03694601]
[1738920331409,5.1186,195.32,195.3,0.03694601]
[1738920331609,0.03773965,195.33,195.3,0.03694601]
[1738920333907,27.19538134,195.31,195.15,27.19538134]
[1738920334111,27.19538134,195.28,195.14,6.73000855]
[1738920334310,1.5462,195.27,195.14,6.73000855]
[1738920334513,1.5462,195.27,195.15,5.1227]
[1738920334912,5.1205,195.25,195.17,5.1223]
[1738920335108,0.0379429,195.23,195.19,0.03356168]
[1738920336411,0.0379429,195.23,195.1,58.33657129]
[1738920336811,1.5424,195.24,195.1,58.33657129]
[1738920337518,5.1222,195.18,195.11,5.124]
[1738920337817,5.1222,195.18,195.15,0.03769055]
[1738920339815,0.03263394,195.19,195.15,0.03769055]
[1738920342727,5.1225,195.17,195.15,0.03769055]
[1738920344223,0.03263394,195.19,195.15,0.03769055]
[1738920345130,0.03263394,195.19,195.17,5.1224]
[1738920345321,0.03263394,195.19,195.15,0.03769055]
[1738920345522,0.03263394,195.19,195.17,5.1224]
[1738920345823,0.03263394,195.19,195.15,0.03769055]
[1738920346019,1.5462,195.27,195.15,27.23307189]
[1738920346326,3.1344,195.32,195.18,27.19538134]
[1738920346726,5.119,195.3,195.18,27.19538134]
[1738920347420,0.03937483,195.26,195.22,0.03269128]
[1738920349123,0.03937483,195.26,195.22,9.128e-05]
[1738920349428,27.19538134,195.25,195.09,5.1244]
[1738920349625,27.19538134,195.21,195.06,27.19538134]
[1738920349826,5.1227,195.16,195.09,5.1245]
[1738920350631,0.03734821,195.14,195.11,0.03763322]
[1738920351832,5.16054821,195.14,195.11,0.03763322]
[1738920352035,0.03734821,195.14,195.11,0.03763322]
[1738920353633,5.16064821,195.14,195.11,0.03763322]
[1738920353836,0.03734821,195.14,195.11,0.03763322]
[1738920355834,5.16064821,195.14,195.11,0.03763322]
[1738920358041,5.1235,195.13,195.11,0.03763322]
[1738920358938,0.03734821,195.14,195.11,0.03763322]
[1738920360737,5.1236,195.13,195.11,0.03763322]
[1738920361942,0.03734821,195.14,195.11,0.03763322]
[1738920363243,0.03734821,195.14,195.12,5.1237]
[1738920363639,0.03734821,195.14,195.11,0.03763322]
[1738920364345,5.1237,195.12,195.11,0.03763322]
[1738920365147,5.1235,195.13,195.11,0.03763322]
[1738920365342,4.23980018,195.12,195.11,0.03763322]
[1738920366341,4.23980018,195.12,195.11,5.16163322]
[1738920366947,4.23980018,195.12,195.11,0.03763322]
[1738920367838,5.16054821,195.14,195.11,0.03763322]
[1738920368042,0.03734821,195.14,195.11,0.03763322]
[1738920368649,5.1235,195.13,195.11,0.03763322]
[1738920369349,0.03734821,195.14,195.11,0.03763322]
[1738920370048,5.16054821,195.14,195.11,0.03763322]
[1738920370247,0.03734821,195.14,195.11,0.03763322]
[1738920370443,0.03734821,195.14,195.01,1.5851]
[1738920370749,27.19538134,195.18,195.05,5.1255]
[1738920371049,5.1243,195.1,195.05,5.1255]
[1738920371745,5.1248,195.08,195.02,5.1261]
[1738920372147,0.03327925,195.07,194.98,1.5531]
[1738920372343,0.03327925,195.07,194.94,28.69668134]
[1738920372547,27.19538134,195.09,194.94,28.69668134]
[1738920372746,0.03394088,195.03,194.94,28.69668134]
[1738920372944,0.03394088,195.03,195.0,5.1268]
[1738920374945,0.03394088,195.03,195.02,5.1264]
[1738920375153,3.1593,195.11,194.97,27.19538134]
[1738920375450,8.2833,195.11,195.04,5.1256]
[1738920376245,0.03368792,195.09,195.04,5.1256]
[1738920376445,0.03368792,195.09,195.06,0.03394088]
[1738920378252,5.125,195.07,195.06,0.03394088]
[1738920381451,5.1248,195.08,195.06,0.03394088]
[1738920381646,0.03368792,195.09,195.06,0.03394088]
[1738920381953,4.17860565,195.08,195.06,0.03394088]
[1738920382351,5.125,195.07,195.06,0.03394088]
[1738920382552,4.17860565,195.08,194.94,28.69668134]
[1738920382753,17.03516891,195.07,194.94,18.53646891]
[1738920383256,5.1263,195.03,194.99,5.1271]
[1738920383443,17.03516891,195.07,194.94,18.53646891]
[1738920383649,0.03411458,195.03,194.94,18.53646891]
[1738920383948,5.1264,195.02,194.94,18.53646891]
[1738920384354,0.03411458,195.03,194.96,5.1279]
[1738920385055,5.1266,195.01,194.96,5.1279]
[1738920385452,0.03411458,195.03,194.94,18.53646891]
[1738920386049,0.03411458,195.03,194.92,8.1588]
[1738920386352,5.1282,194.96,194.88,17.03516891]
[1738920386551,17.03516891,194.98,194.88,17.03516891]
[1738920386750,0.03908753,194.94,194.88,17.03516891]
[1738920387356,0.03908753,194.94,194.9,5.1294]
[1738920389652,8.753e-05,194.94,194.93,5.1287]
[1738920399376,4.671,195.09,195.02,5.1263]
[1738920399566,4.671,195.09,194.96,27.27216117]
[1738920399868,4.671,195.09,194.97,1.5048]
[1738920400265,5.1256,195.05,194.97,1.5048]
[1738920400666,0.03788629,195.03,194.99,0.03750759]
[1738920402267,5.16418629,195.03,194.99,0.03750759]
[1738920404371,0.03788629,195.03,194.99,0.03750759]
[1738920404964,0.03788629,195.03,195.01,5.1264]
[1738920406571,0.03788629,195.03,194.99,0.03750759]
[1738920406766,0.03788629,195.03,195.02,5.1264]
[1738920407577,8.629e-05,195.03,195.02,5.1264]
[1738920415583,17.02278454,195.17,195.1,5.124]
[1738920415784,21.84238454,195.2,195.07,17.02278454]
[1738920416380,21.84238454,195.2,195.11,5.1238]
[1738920416683,21.84238454,195.2,195.14,0.03883109]
[1738920416889,0.0360255,195.17,195.14,0.03883109]
[1738920417082,5.1586255,195.17,195.14,0.03883109]
[1738920417781,0.0360255,195.17,195.14,0.03883109]
[1738920418287,0.0360255,195.17,195.15,5.1227]
[1738920418581,0.0360255,195.17,195.14,0.03883109]
[1738920418792,0.0360255,195.17,195.16,5.1227]
[1738920418980,0.0360255,195.17,195.14,0.03883109]
[1738920422088,0.0360255,195.17,195.14,5.16203109]
[1738920423581,0.0360255,195.17,195.16,5.1227]
[1738920427187,0.0360255,195.17,195.16,22.14548454]
[1738920427689,0.0360255,195.17,195.15,5.1229]
[1738920427891,0.0360255,195.17,195.14,0.03883109]
[1738920430792,4.18396326,195.16,195.14,0.03883109]
[1738920431485,0.0360255,195.17,195.14,0.03883109]
[1738920432497,4.1846353,195.16,195.14,0.03883109]
[1738920433193,4.1846353,195.15,195.14,0.03883109]
[1738920434090,17.05881004,195.17,195.14,0.03883109]
[1738920434299,5.1233,195.14,195.08,5.1248]
[1738920435096,17.02278454,195.17,195.04,17.02278454]
[1738920435295,17.02278454,195.14,195.02,193.0]
[1738920435499,17.02278454,195.14,195.09,0.03483169]
[1738920435500,0.03438846,195.12,195.09,0.03483169]
[1738920436702,5.1242,195.11,195.09,0.03483169]
[1738920437202,5.1242,195.1,195.09,0.03483169]
[1738920437398,5.1242,195.1,195.05,5.1254]
[1738920437797,6.699,195.11,195.05,5.1254]
[1738920438205,1.575,195.11,195.05,5.1254]
[1738920438701,6.699,195.11,195.05,5.1254]
[1738920439504,6.699,195.11,195.01,17.02278454]
[1738920439505,1.575,195.11,195.04,17.02278454]
[1738920440002,0.03898018,195.09,195.04,17.02278454]
[1738920440405,0.03898018,195.09,195.06,5.1251]
[1738920444203,0.03898018,195.09,195.07,5.125]
[1738920444605,0.03898018,195.09,195.08,5.1248]
[1738920447411,0.03898018,195.09,195.04,17.02278454]
[1738920447412,0.03898018,195.09,195.06,5.1253]
[1738920449716,0.03898018,195.09,195.07,5.125]
[1738920450416,4.22673648,195.08,195.07,5.125]
[1738920454320,4.22673648,195.08,195.06,5.1253]
[1738920455018,4.22673648,195.07,195.06,5.1253]
[1738920458629,4.22673648,195.07,195.06,16.01714312]
[1738920462628,0.03898018,195.09,195.06,16.01714312]
[1738920463634,0.03898018,195.09,195.07,5.1249]
[1738920467832,0.03898018,195.09,195.04,16.01754312]
[1738920468131,0.03672168,195.08,195.02,10.89184312]
[1738920468530,0.03672168,195.08,195.03,5.1259]
[1738920469238,0.03672168,195.08,195.04,10.89184312]
[1738920469541,16.01554312,195.12,195.04,10.89184312]
[1738920469733,0.03848389,195.08,195.04,10.89184312]
[1738920470334,11.35461346,195.07,195.06,10.89184312]
[1738920471635,11.35461346,195.07,195.06,16.01714312]
[1738920471829,0.03360337,195.08,195.06,10.89184312]
[1738920472335,94.97677679,195.2,195.06,203.89184312]
[1738920472527,123.757007,195.21,195.18,10.89184312]
[1738920472727,88.70190114,195.21,195.2,10.89184312]
[1738920472936,4.8974,195.34,195.2,10.89184312]
[1738920473137,4.8974,195.34,195.27,10.89184312]
[1738920473636,0.03679604,195.29,195.27,10.89184312]
[1738920474039,0.03679604,195.29,195.26,0.03758388]
[1738920476040,15.67740748,195.28,195.27,16.98774241]
[1738920476342,4.6057,195.46,195.27,16.98774241]
[1738920476535,4.6057,195.46,195.37,16.98774241]
[1738920477342,16.98774241,195.68,195.45,16.98774241]
[1738920477535,16.98774241,195.68,195.55,16.98774241]
[1738920477740,22.09774241,195.65,195.5,16.98774241]
[1738920477933,0.03478503,195.58,195.5,16.98774241]
[1738920478236,0.03478503,195.58,195.56,0.03667436]
[1738920478540,16.98774241,195.63,195.47,16.98774241]
[1738920478741,0.0333465,195.59,195.55,0.0356683]
[1738920478943,0.0333465,195.59,195.57,42.24168642]
[1738920479240,0.0333465,195.59,195.44,16.98774241]
[1738920479440,16.98774241,195.6,195.44,16.98774241]
[1738920479945,5.1115,195.59,195.44,16.98774241]
[1738920480336,4.97739444,195.6,195.5,0.03373852]
[1738920480540,16.98774241,195.6,195.5,0.03373852]
[1738920480742,0.03405057,195.57,195.5,0.03373852]
[1738920480941,0.03405057,195.57,195.45,7.48136736]
[1738920481241,27.11068554,195.6,195.56,137.97929425]
[1738920481545,5.1118,195.58,195.56,137.97929425]
[1738920481839,5.1118,195.58,195.5,6.88692234]
[1738920482238,5.1129,195.54,195.52,0.03554259]
[1738920482438,5.1129,195.54,195.5,6.88692234]
[1738920482439,5.0565188,195.54,195.5,6.88692234]
[1738920482641,5.1131,195.53,195.51,0.03328284]
[1738920482841,27.11068554,195.54,195.5,6.88692234]
[1738920483647,5.1134,195.52,195.44,8.40132234]
[1738920484047,27.11068554,195.8,195.51,27.11068554]
[1738920484354,27.11068554,195.8,195.59,27.11068554]
[1738920484652,27.11068554,195.8,195.65,5.1097]
[1738920484854,27.11068554,195.83,195.66,27.11068554]
[1738920485147,27.11068554,195.83,195.67,3.239]
[1738920485352,5.1058,195.81,195.67,3.239]
[1738920485644,0.03326968,195.76,195.72,0.03760458]
[1738920487756,5.1077,195.74,195.72,0.03760458]
[1738920488050,0.03326968,195.76,195.61,1.6413]
[1738920488252,27.11068554,195.74,195.61,1.6413]
[1738920488455,5.1079,195.73,195.61,1.6413]
[1738920488644,27.11068554,195.77,195.61,1.6413]
[1738920489454,0.0361763,195.71,195.67,0.03460924]
[1738920492155,5.1089,195.69,195.67,0.03460924]
[1738920493146,27.14686184,195.71,195.6,1.5669]
[1738920493353,193.0,195.79,195.6,1.5669]
[1738920493354,27.11068554,195.74,195.6,1.5669]
[1738920494349,0.03313437,195.69,195.6,1.5669]
[1738920494544,20.477,195.89,195.6,1.5669]
[1738920494545,27.11068554,195.84,195.67,27.11068554]
[1738920494751,193.0,195.94,195.67,27.11068554]
[1738920494752,27.11068554,195.88,195.67,27.11068554]
[1738920494947,27.11068554,195.88,195.71,27.11068554]
[1738920495549,27.11068554,195.91,195.74,27.11068554]
[1738920495750,0.03611159,195.8,195.77,0.03786881]
[1738920498959,0.03611159,195.8,195.78,5.1064]
[1738920499348,5.1038,195.88,195.79,5.1062]
[1738920499553,1.6211,195.9,195.77,27.11068554]
[1738920500158,5.104,195.88,195.77,27.11068554]
[1738920500459,1.6211,195.9,195.77,27.11068554]
[1738920500659,0.03706894,195.84,195.81,0.03370113]
[1738920503159,5.14196894,195.84,195.81,0.03370113]
[1738920503760,0.03706894,195.84,195.81,0.03370113]
[1738920503969,0.03706894,195.84,195.72,1.5619]
[1738920504166,27.11068554,195.85,195.72,1.5619]
[1738920504467,27.11068554,195.88,195.74,5.1075]
[1738920504468,5.1059,195.81,195.74,5.1075]
[1738920504765,27.11068554,195.88,195.74,5.1075]
[1738920505363,0.03828762,195.83,195.79,0.037643]
[1738920505757,5.1057,195.81,195.79,0.037643]
[1738920506466,0.03828762,195.83,195.79,0.037643]
[1738920506856,5.14368762,195.83,195.79,0.037643]
[1738920507265,0.03828762,195.83,195.79,0.037643]
[1738920507561,5.14358762,195.83,195.79,0.037643]
[1738920507957,0.03828762,195.83,195.79,0.037643]
[1738920508164,5.1055,195.82,195.79,0.037643]
[1738920508362,0.03828762,195.83,195.79,0.037643]
[1738920511161,0.03828762,195.83,195.8,5.1059]
[1738920511361,0.03828762,195.83,195.81,27.11068554]
[1738920512068,0.03828762,195.83,195.81,32.21628554]
[1738920513268,0.03828762,195.83,195.8,1.6312]
[1738920514368,12.78059897,195.92,195.81,27.11068554]
[1738920514571,5.1039,195.88,195.81,32.21618554]
[1738920514772,12.78059897,195.92,195.81,27.11068554]
[1738920515070,12.78059897,195.92,195.8,1.6312]
[1738920515266,5.1044,195.86,195.8,1.6312]
[1738920515572,0.03845379,195.85,195.81,0.0329349]
[1738920517072,5.1049,195.84,195.81,0.0329349]
[1738920518468,27.11068554,195.82,195.73,6.88692234]
[1738920519070,5.1073,195.75,195.73,6.88692234]
[1738920519881,5.1075,195.74,195.73,6.88692234]
[1738920520373,27.14591874,195.76,195.72,0.03490791]
[1738920521071,5.1078,195.73,195.72,0.03490791]
[1738920521962,27.14591874,195.76,195.72,0.03490791]
[1738920521963,0.0352332,195.76,195.72,0.03490791]
[1738920522167,39.89128451,195.92,195.73,27.11068554]
[1738920522470,1.62,195.91,195.73,27.11068554]
[1738920522871,27.11068554,195.89,195.73,27.11068554]
[1738920523074,27.11068554,195.89,195.7,27.11068554]
[1738920523276,0.03635438,195.83,195.79,0.03263366]
[1738920524068,5.1059,195.81,195.79,0.03263366]
[1738920524274,0.03635438,195.83,195.79,0.03263366]
[1738920524471,5.1059,195.8,195.79,0.03263366]
[1738920524677,27.11068554,195.8,195.64,27.54768938]
[1738920524879,1.5372,195.79,195.64,27.54768938]
[1738920525177,1.5372,195.79,195.64,54.65837492]
[1738920525880,0.03473128,195.73,195.7,0.03521871]
[1738920526074,0.03473128,195.73,195.72,6.88692234]
[1738920527471,27.11068554,195.82,195.72,6.88692234]
[1738920527472,27.11068554,195.85,195.72,6.88692234]
[1738920528273,5.1062,195.79,195.72,11.99492234]
[1738920528581,5.1062,195.79,195.72,5.108]
[1738920528780,0.03470406,195.77,195.74,0.03877474]
[1738920534278,0.03470406,195.77,195.76,5.107]
[1738920539991,27.11068554,195.87,195.78,5.1063]
[1738920540892,27.11068554,195.87,195.79,5.1061]
[1738920541192,0.03443075,195.84,195.81,0.03893912]
[1738920541397,5.104,195.88,195.81,5.14433912]
[1738920541691,0.03225554,195.84,195.81,0.03893912]
[1738920542991,0.03225554,195.84,195.82,5.1053]
[1738920544396,5.13725554,195.84,195.81,0.03893912]
[1738920544596,0.03225554,195.84,195.81,0.03893912]
[1738920545395,5.13715554,195.84,195.81,0.03893912]
[1738920546002,5.1052,195.83,195.81,0.03893912]
[1738920546901,0.03225554,195.84,195.81,0.03893912]
[1738920554510,0.03225554,195.84,195.81,5.14443912]
[1738920555208,0.03225554,195.84,195.82,5.1053]
[1738920555605,0.03225554,195.84,195.83,5.1051]
[1738920562314,21.99622919,195.91,195.84,5.1046]
[1738920562502,16.89312919,195.91,195.81,16.89312919]
[1738920562906,12.78059897,195.92,195.86,5.1042]
[1738920563515,0.03404274,195.91,195.87,0.03413203]
[1738920567012,5.1036,195.9,195.87,0.03413203]
[1738920567212,0.03404274,195.91,195.87,16.92726122]
[1738920567414,12.78059897,195.92,195.88,1.6162]
[1738920567617,12.78059897,195.92,195.88,3.1122]
[1738920567816,12.78059897,195.92,195.88,1.6162]
[1738920568211,12.78059897,195.92,195.88,6.7199]
[1738920568414,12.81504209,195.92,195.88,1.6162]
[1738920568919,12.81504209,195.92,195.88,6.7198]
[1738920569115,12.81504209,195.92,195.88,1.6162]
[1738920569617,12.81504209,195.92,195.89,5.1034]
[1738920569812,7.85124209,195.92,195.9,16.89312919]
[1738920571818,7.85124209,195.92,195.9,21.99622919]
[1738920574022,7.85124209,195.92,195.91,5.1031]
[1738920578121,7.85124209,195.92,195.9,18.45032919]
[1738920578322,7.85124209,195.92,195.9,6.6605]
[1738920579722,7.85124209,195.92,195.9,1.5572]
[1738920580424,7.85124209,195.92,195.9,6.6605]
[1738920580625,7.85124209,195.92,195.9,1.5572]
[1738920582724,7.85124209,195.92,195.89,5.1033]
[1738920583322,7.85124209,195.92,195.88,1.6162]
[1738920583520,0.5,195.98,195.97,5.1015]
[1738920583719,2.9937,196.09,195.97,16.89312919]
[1738920584121,2.9937,196.09,196.01,5.1003]
[1738920584317,16.89312919,196.1,195.97,16.89312919]
[1738920584827,0.03323278,196.05,196.02,0.03645334]
[1738920587227,5.0997,196.04,196.02,0.03645334]
[1738920587426,0.03323278,196.05,196.02,0.03645334]
[1738920587626,0.03323278,196.05,196.03,16.89312919]
[1738920588121,16.89312919,196.17,196.03,16.89312919]
[1738920588429,16.89312919,196.2,196.09,16.89312919]
[1738920588629,16.89312919,196.17,196.06,16.89312919]
[1738920589220,5.0968,196.16,196.06,16.89312919]
[1738920589417,0.03401002,196.13,196.1,0.03476984]
[1738920590928,5.13141002,196.13,196.1,0.03476984]
[1738920592122,5.0979,196.11,196.1,0.03476984]
[1738920594426,5.0988,196.08,196.0,21.99382919]
[1738920595324,5.0988,196.08,196.01,5.1004]
[1738920595520,0.0374366,196.06,196.02,0.0321829]
[1738920597729,5.0997,196.04,196.02,0.0321829]
[1738920598027,16.89312919,196.19,196.03,16.89312919]
[1738920598228,3.1064,196.15,196.08,16.89312919]
[1738920599022,0.03635791,196.13,196.1,0.03662225]
[1738920600434,0.03635791,196.13,196.11,16.89312919]
[1738920602331,0.03635791,196.13,196.1,0.03662225]
[1738920610343,5.0976,196.12,196.1,0.03662225]
[1738920610635,0.03635791,196.13,196.1,0.03662225]
[1738920610841,5.0979,196.11,196.1,0.03662225]
[1738920614337,5.0984,196.09,196.04,5.0997]
[1738920614539,3.9323,196.12,196.02,16.89312919]
[1738920614734,10.78166074,196.17,196.1,10.78166074]
[1738920614937,1.5104,196.18,196.12,10.78166074]
[1738920615244,1.5104,196.18,196.14,10.78166074]
[1738920615437,0.03277602,196.17,196.14,10.78166074]
[1738920616339,0.03277602,196.17,196.13,0.0336902]
[1738920616740,5.0966,196.16,196.13,0.0336902]
[1738920620746,5.0969,196.15,196.13,0.0336902]
[1738920621842,0.03277602,196.17,196.13,0.0336902]
[1738920622650,5.0969,196.15,196.13,0.0336902]
[1738920623150,0.03277602,196.17,196.13,0.0336902]
[1738920624247,5.0966,196.16,196.13,0.0336902]
[1738920625948,0.03277602,196.17,196.13,0.0336902]
[1738920627849,5.0967,196.16,196.13,0.0336902]
[1738920628049,0.03277602,196.17,196.13,0.0336902]
[1738920628450,5.0966,196.16,196.13,0.0336902]
[1738920628646,0.03277602,196.17,196.13,0.0336902]
[1738920629148,5.0966,196.16,196.13,0.0336902]
[1738920631052,0.03277602,196.17,196.13,0.0336902]
[1738920631257,5.0969,196.15,196.13,0.0336902]
[1738920633163,5.0966,196.16,196.13,0.0336902]
[1738920634358,0.03277602,196.17,196.13,0.0336902]
[1738920634864,5.0966,196.16,196.13,0.0336902]
[1738920635065,0.03277602,196.17,196.05,44.38381825]
[1738920635366,16.83612887,196.18,196.05,27.54768938]
[1738920635563,16.83612887,196.18,196.05,32.64688938]
[1738920635963,16.83612887,196.18,196.05,27.54768938]
[1738920636168,5.0978,196.12,196.06,5.0991]
[1738920636464,5.0978,196.12,196.1,0.03761513]
[1738920636665,5.13178079,196.13,196.1,0.03761513]
[1738920637269,5.0979,196.11,196.1,0.03761513]
[1738920638460,5.0992,196.06,196.05,27.54768938]
[1738920638666,10.78807762,196.06,196.01,11.98732234]
[1738920638966,3.6857,196.12,196.01,22.77539996]
[1738920638967,10.78807762,196.08,196.01,22.77539996]
[1738920639161,5.099,196.07,196.01,17.67499996]
[1738920639366,5.099,196.07,196.01,22.77539996]
[1738920639568,5.099,196.07,196.02,0.03848531]
[1738920639773,0.03709844,196.06,196.05,10.78807762]
[1738920639963,14.47377762,196.12,196.05,10.78807762]
[1738920640158,0.03216253,196.07,196.04,0.03643714]
[1738920643871,0.03216253,196.07,196.05,10.78807762]
[1738920647474,0.03216253,196.07,196.04,5.13613714]
[1738920647970,0.03216253,196.07,196.06,5.0992]
[1738920648473,10.78807762,196.16,196.05,12.33307762]
[1738920648672,10.78807762,196.14,196.07,10.78807762]
[1738920648974,10.78807762,196.14,196.05,12.33307762]
[1738920649675,0.03816829,196.11,196.08,0.03259351]
[1738920650067,5.13626829,196.11,196.08,0.03259351]
[1738920650270,10.78807762,196.1,196.08,0.03259351]
[1738920650572,5.0984,196.09,196.08,0.03259351]
[1738920651777,15.88617762,196.1,196.08,0.03259351]
[1738920651971,0.03816829,196.11,196.08,0.03259351]
[1738920652267,5.0983,196.1,196.08,0.03259351]
[1738920652466,15.88637762,196.1,196.08,0.03259351]
[1738920658981,5.0984,196.09,196.08,0.03259351]
[1738920659678,5.099,196.07,195.99,10.78807762]
[1738920659877,10.78807762,196.04,195.98,27.54768938]
[1738920660382,5.1001,196.03,195.98,27.54768938]
[1738920660683,10.78807762,196.04,195.98,27.54768938]
[1738920660979,5.1005,196.01,195.99,0.03854146]
[1738920661172,10.82576628,196.02,195.99,0.03854146]
[1738920661374,5.101,195.99,195.98,25.00018938]
[1738920661681,5.101,195.99,195.97,55.09537879]
[1738920661682,10.78807762,196.0,195.97,55.09537879]
[1738920661982,10.78807762,195.98,195.97,55.09537879]
[1738920662282,5.1019,195.96,195.93,20.90589092]
[1738920662482,15.88997762,195.96,195.93,20.94489852]
[1738920662671,15.89037762,195.94,195.93,20.94489852]
[1738920664678,21.98418567,195.94,195.93,20.94489852]
[1738920665480,21.98418567,195.94,195.93,0.0390076]
[1738920667882,21.98418567,195.94,195.84,5.1046]
[1738920667883,5.1033,195.91,195.84,5.1046]
[1738920668079,5.1033,195.91,195.78,55.09537879]
[1738920668283,16.88188567,195.94,195.78,55.09537879]
[1738920668783,16.88188567,195.94,195.72,55.09537879]
[1738920668983,0.03709146,195.91,195.88,0.03837452]
[1738920670579,16.88188567,195.9,195.88,0.03837452]
[1738920673284,16.88188567,195.9,195.74,16.88188567]
[1738920673478,0.03709146,195.91,195.74,16.88188567]
[1738920673479,16.88188567,195.86,195.81,2.3443]
[1738920674385,0.03678358,195.85,195.82,0.02935314]
[1738920678685,16.88188567,195.92,195.82,0.02935314]
[1738920679686,21.98488567,195.92,195.85,5.1045]
[1738920679884,0.03447224,195.89,195.85,5.1045]
[1738920680082,0.03447224,195.89,195.87,0.0323193]
[1738920680281,0.03447224,195.89,195.86,6.713]
[1738920680487,0.03447224,195.89,195.86,6.75189195]
[1738920682086,0.03447224,195.89,195.86,1.64759195]
[1738920682783,16.88188567,195.92,195.86,1.64759195]
[1738920683087,16.88188567,195.95,195.87,5.1041]
[1738920683484,5.1025,195.93,195.87,5.1041]
[1738920683887,16.88188567,195.95,195.86,1.6087]
[1738920684088,0.03309659,195.92,195.88,0.03296735]
[1738920684587,0.03309659,195.92,195.88,5.13676735]
[1738920684783,0.03309659,195.92,195.89,2.3185]
[1738920685982,5.13609659,195.92,195.89,2.3185]
[1738920688391,16.91498226,195.92,195.88,0.03296735]
[1738920688579,16.88188567,195.89,195.88,0.03296735]
[1738920689588,21.98548567,195.89,195.88,0.03296735]
[1738920690388,16.91498226,195.92,195.88,0.03296735]
[1738920690894,5.1033,195.91,195.88,0.03296735]
[1738920691190,16.91498226,195.92,195.88,0.03296735]
[1738920691579,5.1034,195.9,195.88,0.03296735]
[1738920691984,16.91498226,195.92,195.88,0.03296735]
[1738920692191,0.03309659,195.92,195.88,0.03296735]
[1738920693590,0.03309659,195.92,195.88,5.13676735]
[1738920693901,0.03309659,195.92,195.88,0.03296735]
[1738920694290,5.13589659,195.92,195.88,0.03296735]
[1738920695492,5.1034,195.9,195.88,0.03296735]
[1738920695692,16.91498226,195.92,195.88,0.03296735]
[1738920696391,5.1031,195.91,195.88,0.03296735]
[1738920698092,16.91498226,195.92,195.88,5.13676735]
[1738920698296,16.88188567,196.01,195.89,2.1925]
[1738920698490,16.88188567,196.01,195.9,16.88188567]
[1738920699393,0.03702417,195.97,195.94,0.03603801]
[1738920699794,21.20599851,196.08,195.94,0.03603801]
[1738920699795,16.88188567,196.04,195.94,0.03603801]
[1738920699996,16.88188567,196.04,195.93,16.88188567]
[1738920700694,16.88188567,196.07,195.93,16.88188567]
[1738920701088,0.03545201,196.02,195.98,0.03740625]
[1738920701996,0.03545201,196.02,195.98,6.75780625]
[1738920702594,0.03545201,196.02,195.98,1.65660625]
[1738920702902,16.88188567,196.1,195.99,16.88188567]
[1738920703398,5.0987,196.08,196.0,6.7906]
[1738920703791,0.03697857,196.06,196.02,0.03601285]
[1738920704297,16.88188567,196.04,196.02,0.03601285]
[1738920704595,5.0999,196.03,196.02,0.03601285]
[1738920710504,16.88188567,196.04,195.95,2.2624]
[1738920710699,5.1011,195.99,195.95,2.2624]
[1738920711704,0.03710361,195.99,195.95,2.30061417]
[1738920712099,16.88188567,195.98,195.95,0.03821417]
[1738920712496,5.1018,195.96,195.95,0.03821417]
[1738920716410,5.1036,195.89,195.88,2.348]
[1738920716605,16.88188567,195.93,195.85,1.6233]
[1738920717606,5.1038,195.88,195.87,0.03270283]
[1738920727215,5.1034,195.9,195.87,0.03270283]
[1738920727418,0.03486459,195.91,195.87,0.03270283]
[1738920728118,5.1038,195.89,195.87,0.03270283]
[1738920729020,0.03486459,195.91,195.87,0.03270283]
[1738920729212,5.1038,195.88,195.87,0.03270283]
[1738920729608,22.50350094,196.03,195.87,16.9145885]
[1738920729813,16.88188567,196.08,195.92,16.88188567]
[1738920730012,16.88188567,196.08,195.95,16.88188567]
[1738920730218,54.76080985,196.1,195.98,16.88188567]
[1738920730521,54.76080985,196.1,196.01,16.88188567]
[1738920730725,0.03731139,196.05,196.04,16.88188567]
[1738920730915,54.76080985,196.1,196.04,16.88188567]
[1738920731821,83.17685248,196.12,196.04,16.88188567]